bitfinex-derivatives/quotes_SOLF0:USTF0_20251108
["timestamp","ask_amount","ask_price","bid_price","bid_amount"]
[1762595081712,4.54637711,161.96,161.95,0.04150087]
[1762595081912,4.54637711,161.96,161.95,61.46150087]
[1762595083914,4.54637711,161.96,161.95,0.04150087]
[1762595084115,4.56002239,161.96,161.95,61.44150087]
[1762595084312,2.91,161.95,161.92,3.02]
[1762595084515,2.91,161.95,161.93,61.4]
[1762595085318,10.12140206,161.94,161.93,61.4]
[1762595085522,13.03140206,161.94,161.93,61.4]
[1762595085718,13.03140206,161.94,161.92,3.05886771]
[1762595085924,4.56060206,161.93,161.92,32.43886771]
[1762595086427,4.56060206,161.93,161.92,60.35886771]
[1762595090723,4.56060206,161.93,161.92,3.05886771]
[1762595090925,4.56060206,161.93,161.92,64.43886771]
[1762595091425,7.47060206,161.93,161.92,61.41886771]
[1762595091620,7.47060206,161.93,161.92,0.03886771]
[1762595091822,7.47060206,161.93,161.92,41.15886771]
[1762595092120,4.56060206,161.93,161.92,41.15886771]
[1762595092320,4.56060206,161.93,161.92,0.03886771]
[1762595093216,4.56060206,161.93,161.92,2.93886771]
[1762595093923,4.56060206,161.93,161.92,64.31886771]
[1762595095123,4.56060206,161.93,161.92,2.93886771]
[1762595095520,4.56060206,161.93,161.92,0.03886771]
[1762595097413,2.91,161.92,161.9,22.06]
[1762595097622,4.56060206,161.91,161.87,2.9]
[1762595097823,4.56060206,161.9,161.89,2.9]
[1762595098422,4.56060206,161.9,161.89,64.26]
[1762595098922,4.56060206,161.9,161.89,2.9]
[1762595099119,4.56060206,161.9,161.89,64.24]
[1762595100723,5.6029278,161.91,161.9,2.9]
[1762595100923,10.17380326,161.91,161.9,2.9]
[1762595101626,4.61200326,161.91,161.9,2.9]
[1762595101820,4.61200326,161.91,161.9,38.34]
[1762595102020,5.5598,161.97,161.91,3.06]
[1762595102327,4.56881154,161.96,161.91,3.06]
[1762595102522,4.56881154,161.95,161.91,3.06]
[1762595102724,4.56881154,161.94,161.91,3.06]
[1762595103021,4.56881154,161.94,161.91,3.10014935]
[1762595103022,4.56881154,161.93,161.91,3.10014935]
[1762595103223,4.56881154,161.92,161.91,61.44014935]
[1762595103521,7.71881154,161.92,161.91,0.04014935]
[1762595103722,3.15,161.91,161.87,16.42]
[1762595103917,5.5624,161.89,161.87,3.06]
[1762595104122,4.56881154,161.88,161.87,3.06]
[1762595104923,0.04533862,161.89,161.88,3.06]
[1762595105420,0.04533862,161.89,161.88,10.59975209]
[1762595105629,84.84651298,162.0,161.89,3.06]
[1762595105926,3.15,161.99,161.91,3.06]
[1762595106115,3.15,161.99,161.93,3.06]
[1762595106517,0.04519508,161.98,161.95,3.06]
[1762595106716,0.04540185,161.98,161.95,3.10674951]
[1762595108724,5.60480185,161.98,161.95,3.10674951]
[1762595109325,0.04540185,161.98,161.95,3.10674951]
[1762595110229,3.19540185,161.98,161.95,3.10674951]
[1762595110725,5.5598,161.97,161.95,0.04674951]
[1762595110932,3.15,161.96,161.91,3.06]
[1762595111729,3.15,161.96,161.86,1.97705209]
[1762595111730,3.15,161.93,161.88,39.56]
[1762595112034,0.03950412,161.92,161.89,3.08310817]
[1762595112225,5.60100412,161.92,161.89,3.08310817]
[1762595112625,0.03950412,161.92,161.89,3.08310817]
[1762595115630,5.5617,161.91,161.89,3.08310817]
[1762595120130,0.03950412,161.92,161.89,3.08310817]
[1762595121037,8.7117,161.91,161.89,0.02310817]
[1762595121935,3.15,161.9,161.89,0.02310817]
[1762595123124,5.5617,161.91,161.89,3.08310817]
[1762595124735,8.7117,161.91,161.89,3.08310817]
[1762595124938,8.7117,161.91,161.89,0.02310817]
[1762595128237,8.7117,161.91,161.89,3.08310817]
[1762595128438,0.03950412,161.92,161.89,3.08310817]
[1762595129434,5.60090412,161.92,161.89,3.08310817]
[1762595129834,8.75090412,161.92,161.89,3.08310817]
[1762595130034,5.5617,161.91,161.89,3.08310817]
[1762595130948,0.03950412,161.92,161.89,3.08310817]
[1762595131442,3.10950412,161.92,161.89,3.08310817]
[1762595131842,0.03950412,161.92,161.89,3.08310817]
[1762595134754,0.03950412,161.92,161.9,3.03]
[1762595136049,0.03950412,161.92,161.91,3.03]
[1762595137648,0.03950412,161.92,161.91,64.43]
[1762595138149,0.03950412,161.92,161.91,3.03]
[1762595138352,0.03950412,161.92,161.91,64.43]
[1762595138550,0.03950412,161.92,161.91,3.03]
[1762595138854,0.03950412,161.92,161.91,64.43]
[1762595139546,0.03950412,161.92,161.91,3.03]
[1762595142648,0.03950412,161.92,161.9,2.89]
[1762595142852,0.03950412,161.92,161.89,61.42310817]
[1762595142853,2.94,161.91,161.89,0.02310817]
[1762595144243,0.03950412,161.92,161.89,0.02310817]
[1762595144244,0.03950412,161.92,161.89,2.91310817]
[1762595144955,0.03950412,161.92,161.89,64.33310817]
[1762595145148,0.03950412,161.92,161.9,2.89]
[1762595145845,0.03950412,161.92,161.89,61.44]
[1762595146050,0.03950412,161.92,161.9,5.5619]
[1762595147852,0.03950412,161.92,161.91,2.89]
[1762595154167,2.97950412,161.92,161.89,2.89]
[1762595154365,2.97950412,161.92,161.87,2.89]
[1762595155962,8.54100412,161.92,161.88,2.89]
[1762595156758,2.97950412,161.92,161.89,2.89]
[1762595158354,0.03950412,161.92,161.89,2.89]
[1762595159562,2.97950412,161.92,161.89,2.89]
[1762595160562,8.54090412,161.92,161.89,2.89]
[1762595164168,3.09,161.91,161.89,2.89]
[1762595164764,3.09,161.91,161.87,2.86]
[1762595164961,3.09,161.9,161.87,2.86]
[1762595166269,3.12950412,161.92,161.88,2.86]
[1762595166565,0.04611594,161.92,161.88,2.86]
[1762595167167,3.13611594,161.92,161.88,2.86]
[1762595167970,3.13611594,161.92,161.89,2.86]
[1762595168875,0.04611594,161.92,161.9,2.86]
[1762595169078,0.04549577,161.93,161.9,2.86]
[1762595169776,0.04549577,161.93,161.92,2.86]
[1762595172070,3.13549577,161.93,161.9,2.86]
[1762595172270,3.13549577,161.93,161.89,8.4222]
[1762595172773,3.13549577,161.93,161.9,2.86]
[1762595172971,8.69649577,161.93,161.9,2.86]
[1762595173572,0.04549577,161.93,161.9,2.86]
[1762595174973,0.04549577,161.93,161.92,2.86]
[1762595179377,3.13549577,161.93,161.9,2.86]
[1762595179885,0.04549577,161.93,161.9,2.86]
[1762595181185,0.04549577,161.93,161.9,8.4219]
[1762595182991,0.04549577,161.93,161.91,2.86]
[1762595183682,3.13549577,161.93,161.91,2.86]
[1762595183883,3.13549577,161.93,161.88,2.86]
[1762595184992,3.13549577,161.93,161.89,2.86]
[1762595186285,0.04549577,161.93,161.9,2.86]
[1762595186484,74.0,161.97,161.9,2.86]
[1762595186983,3.09,161.96,161.93,2.86]
[1762595187591,3.13144318,161.96,161.93,2.90214469]
[1762595188201,0.04144318,161.96,161.93,2.90214469]
[1762595188403,3.13144318,161.96,161.93,0.04214469]
[1762595188899,8.69144318,161.96,161.93,2.90214469]
[1762595189899,8.6504,161.95,161.93,0.04214469]
[1762595190090,3.09,161.94,161.93,0.04214469]
[1762595194395,2.98,161.92,161.89,2.86]
[1762595194592,2.98,161.92,161.88,3.01]
[1762595194804,8.5414,161.92,161.88,3.01]
[1762595195004,2.98,161.91,161.88,3.01]
[1762595195803,3.02147933,161.91,161.88,3.01]
[1762595196109,3.02147933,161.91,161.84,3.01]
[1762595196110,2.98,161.9,161.84,3.01]
[1762595196803,2.98,161.9,161.86,3.01]
[1762595197407,8.5421,161.9,161.86,3.01]
[1762595198194,2.98,161.87,161.83,5.5643]
[1762595198499,3.02724448,161.87,161.84,3.01]
[1762595198806,0.04724448,161.87,161.84,3.01]
[1762595199503,0.04724448,161.87,161.84,8.574]
[1762595200105,0.04724448,161.87,161.85,3.01]
[1762595200297,0.04724448,161.87,161.86,3.01]
[1762595202507,0.04724448,161.87,161.85,3.09]
[1762595206312,3.01724448,161.87,161.85,3.09]
[1762595207114,4.99501128,161.87,161.83,3.09]
[1762595207411,2.97,161.86,161.83,3.09]
[1762595207802,0.04724448,161.87,161.83,3.09]
[1762595208817,0.04724448,161.87,161.83,8.6543]
[1762595209027,0.04724448,161.87,161.84,3.09]
[1762595210712,3.01724448,161.87,161.84,3.09]
[1762595212220,10.55821128,161.87,161.84,3.09]
[1762595212422,2.97,161.86,161.79,3.09]
[1762595213320,2.02501128,161.87,161.83,3.09]
[1762595213532,2.01731795,161.87,161.83,3.09]
[1762595215028,2.01731795,161.87,161.84,3.09]
[1762595215225,0.03955115,161.87,161.84,3.09]
[1762595216220,0.03955115,161.87,161.84,8.654]
[1762595216626,0.03955115,161.87,161.85,3.09]
[1762595219224,2.97,161.86,161.83,3.09]
[1762595219927,8.5334,161.86,161.83,3.09]
[1762595220316,2.97,161.85,161.83,3.09]
[1762595220519,10.5116668,161.85,161.77,3.09]
[1762595220727,0.04737632,161.83,161.77,3.09]
[1762595221122,3.09,161.82,161.79,2.98]
[1762595221521,1.9777668,161.81,161.77,2.98]
[1762595221726,5.11292295,161.81,161.77,2.98]
[1762595222230,10.67812295,161.81,161.77,2.98]
[1762595223429,3.09,161.79,161.75,2.98]
[1762595223625,3.13301122,161.79,161.75,2.98]
[1762595225928,3.09,161.78,161.75,2.98]
[1762595228734,3.09,161.77,161.74,2.98]
[1762595228930,5.11060229,161.77,161.74,2.98]
[1762595229125,3.09,161.76,161.72,2.98]
[1762595229337,1.9777668,161.75,161.72,2.98]
[1762595229636,5.0677668,161.75,161.72,2.98]
[1762595231936,3.09,161.75,161.72,2.98]
[1762595235135,3.09,161.75,161.71,8.5484]
[1762595235540,3.09,161.75,161.72,2.98]
[1762595236045,3.09,161.75,161.69,8.549]
[1762595236230,3.09,161.73,161.7,2.98]
[1762595236427,5.0677668,161.72,161.65,2.98]
[1762595236632,3.09,161.71,161.68,2.98]
[1762595236930,3.13017198,161.7,161.68,2.98]
[1762595238343,5.10793878,161.7,161.67,2.98]
[1762595238636,5.10793878,161.7,161.65,2.98]
[1762595238637,3.09,161.69,161.65,2.98]
[1762595238829,3.09,161.69,161.59,175.71006719]
[1762595238830,3.09,161.67,161.6,2.98]
[1762595239031,0.03999793,161.65,161.62,5.5715]
[1762595239236,0.03999793,161.65,161.63,2.98]
[1762595241241,3.12999793,161.65,161.61,2.98]
[1762595241739,1.9777668,161.64,161.61,2.98]
[1762595242038,3.09,161.63,161.59,2.98]
[1762595242245,5.0677668,161.64,161.59,2.98]
[1762595242436,5.0677668,161.64,161.6,2.98]
[1762595243736,3.09,161.61,161.58,2.98]
[1762595243933,0.04628074,161.61,161.58,2.98]
[1762595244136,0.04628074,161.61,161.6,2.98]
[1762595244433,0.03989734,161.62,161.6,2.98]
[1762595245040,0.03989734,161.62,161.61,2.98]
[1762595249040,1.9777668,161.7,161.64,2.98]
[1762595249945,0.04413973,161.69,161.66,2.98]
[1762595250749,0.04413973,161.69,161.68,2.98]
[1762595252147,3.09,161.76,161.68,2.98]
[1762595252451,3.09,161.75,161.68,2.98]
[1762595253051,3.13401642,161.73,161.7,0.04033877]
[1762595253853,3.13401642,161.73,161.7,2.92033877]
[1762595254046,0.04401642,161.73,161.7,2.92033877]
[1762595254951,3.09,161.72,161.65,2.88]
[1762595255349,3.09,161.71,161.65,2.88]
[1762595255848,3.09,161.71,161.66,0.04621241]
[1762595255849,3.09,161.7,161.66,0.04621241]
[1762595256055,3.09,161.7,161.66,0.03924326]
[1762595256257,3.1340442,161.7,161.66,0.03924326]
[1762595256453,5.5698,161.68,161.66,0.03924326]
[1762595256646,5.5698,161.68,161.52,36.68128133]
[1762595256647,3.09,161.61,161.52,2.88]
[1762595256853,3.09935676,161.64,161.52,2.18524894]
[1762595256854,3.09,161.58,161.52,2.18524894]
[1762595257244,3.09,161.57,161.48,5.5764]
[1762595257653,0.04697754,161.54,161.48,5.5764]
[1762595258361,0.04697754,161.54,161.42,3.09935676]
[1762595258560,0.04132808,161.5,161.42,3.09935676]
[1762595258753,0.04132808,161.5,161.49,2.88]
[1762595259451,0.04132808,161.5,161.49,4.12]
[1762595259954,3.09,161.58,161.52,2.88]
[1762595260156,3.09935676,161.61,161.52,2.88]
[1762595260355,3.09,161.61,161.52,2.88]
[1762595261056,3.13348213,161.58,161.55,0.04415387]
[1762595274475,3.14,161.57,161.55,0.04415387]
[1762595275069,3.14,161.56,161.55,0.04415387]
[1762595275270,3.14,161.56,161.48,3.09]
[1762595275672,8.714,161.56,161.48,8.6663]
[1762595275871,3.14,161.56,161.49,3.09]
[1762595276372,3.18253507,161.54,161.49,3.09]
[1762595277180,0.04253507,161.54,161.5,3.09]
[1762595277372,0.03993842,161.54,161.5,3.09]
[1762595278065,0.03993842,161.54,161.5,8.6656]
[1762595279174,3.17993842,161.54,161.5,8.6656]
[1762595279373,3.17993842,161.54,161.5,5.5756]
[1762595279569,3.17993842,161.54,161.41,19.92025384]
[1762595279570,0.03993842,161.54,161.52,3.09]
[1762595279771,0.04671934,161.55,161.52,3.09]
[1762595280976,0.04671934,161.55,161.52,8.665]
[1762595281279,0.04671934,161.55,161.53,2.98]
[1762595282173,0.04671934,161.55,161.52,5.575]
[1762595282782,0.04671934,161.55,161.53,2.98]
[1762595283179,0.04671934,161.55,161.52,5.575]
[1762595283180,2.94671934,161.55,161.52,5.575]
[1762595283580,0.04671934,161.55,161.52,8.555]
[1762595283779,2.94671934,161.55,161.52,8.555]
[1762595285380,0.04671934,161.55,161.52,8.555]
[1762595285575,0.04671934,161.55,161.53,5.5747]
[1762595285780,0.04671934,161.55,161.54,2.98]
[1762595286178,2.94671934,161.55,161.51,5.5753]
[1762595286382,2.94120983,161.55,161.49,2.98]
[1762595286787,2.9,161.54,161.49,8.5559]
[1762595287281,5.5749,161.53,161.47,5.5766]
[1762595287490,2.94372394,161.52,161.43,2.98]
[1762595288979,8.4755,161.51,161.45,5.5773]
[1762595289584,2.9,161.51,161.45,8.5573]
[1762595289984,2.9,161.51,161.39,2.98]
[1762595290188,0.04258301,161.47,161.39,2.98]
[1762595290591,0.04258301,161.47,161.43,8.5581]
[1762595290896,2.9,161.46,161.43,5.5781]
[1762595292781,2.9,161.46,161.41,5.5788]
[1762595294182,2.9,161.46,161.39,5.5794]
[1762595294400,2.9,161.43,161.36,2.98]
[1762595294598,2.94309207,161.41,161.36,2.98]
[1762595294893,2.94309207,161.41,161.34,5.5811]
[1762595295090,2.93990102,161.39,161.34,8.5611]
[1762595295392,0.04144065,161.38,161.35,8.5608]
[1762595295590,0.04137366,161.38,161.36,2.98]
[1762595295790,0.04434245,161.39,161.36,2.98]
[1762595295990,0.04434245,161.39,161.38,2.98]
[1762595296294,0.04353866,161.4,161.38,2.98]
[1762595296495,0.04052117,161.41,161.38,2.98]
[1762595296791,0.04052117,161.41,161.4,2.98]
[1762595296994,2.9,161.49,161.41,2.98]
[1762595297389,2.9,161.49,161.43,5.5781]
[1762595297999,0.04007755,161.48,161.44,8.59973658]
[1762595298193,2.9,161.49,161.44,8.59973658]
[1762595298194,2.9,161.49,161.44,8.5577]
[1762595298489,2.94663853,161.48,161.44,8.60499814]
[1762595299596,2.94663853,161.48,161.44,0.04729814]
[1762595300494,2.9,161.47,161.44,0.04729814]
[1762595301494,2.9,161.46,161.44,0.04729814]
[1762595302293,2.94663853,161.48,161.44,0.04729814]
[1762595302487,2.94663853,161.48,161.44,3.02729814]
[1762595302794,0.04663853,161.48,161.44,3.02729814]
[1762595303298,0.04663853,161.48,161.47,2.98]
[1762595304495,2.9,161.55,161.47,2.98]
[1762595304792,4.39147125,161.54,161.47,2.98]
[1762595304993,2.9,161.54,161.48,5.5763]
[1762595305195,7.2918528,161.53,161.47,2.98]
[1762595305394,2.9,161.51,161.47,2.98]
[1762595305589,2.93907187,161.51,161.47,0.04019677]
[1762595308297,2.9,161.5,161.47,0.04019677]
[1762595309403,2.93907187,161.51,161.47,3.02019677]
[1762595312705,2.93907187,161.51,161.47,0.04019677]
[1762595315313,3.12,161.49,161.4,3.1]
[1762595316305,3.16530925,161.46,161.43,0.04556685]
[1762595317207,5.5776,161.45,161.43,0.04556685]
[1762595317509,3.12,161.44,161.43,0.04556685]
[1762595319807,3.12,161.42,161.36,3.1]
[1762595320209,3.12,161.42,161.33,177.04744015]
[1762595320410,3.12,161.42,161.33,180.14744015]
[1762595320906,3.15945643,161.39,161.35,5.5808]
[1762595321110,3.15945643,161.39,161.35,8.6808]
[1762595321906,3.15945643,161.39,161.32,3.1]
[1762595322112,3.16346941,161.37,161.32,3.1]
[1762595322303,5.15557378,161.37,161.32,3.1]
[1762595322504,2.88,161.36,161.32,3.1]
[1762595323210,2.88,161.36,161.31,5.5821]
[1762595323598,2.88,161.34,161.29,8.4628]
[1762595323803,0.04739882,161.33,161.3,2.88]
[1762595324707,0.04739882,161.33,161.31,5.5822]
[1762595325308,0.04739882,161.33,161.31,8.4622]
[1762595325711,0.04739882,161.33,161.31,2.88]
[1762595325907,0.04739882,161.33,161.24,64.88]
[1762595326106,0.04497318,161.3,161.25,2.88]
[1762595326506,0.04497318,161.3,161.28,5.5831]
[1762595326713,0.04497318,161.3,161.29,2.88]
[1762595336122,2.88,161.42,161.33,2.88]
[1762595336412,2.88,161.41,161.33,2.88]
[1762595336915,2.88,161.38,161.35,0.04230104]
[1762595337114,2.92436778,161.38,161.35,0.0392298]
[1762595338018,2.92436778,161.38,161.36,5.5805]
[1762595338512,2.92436778,161.38,161.35,0.0392298]
[1762595339220,0.04436778,161.38,161.35,2.9192298]
[1762595340915,0.04436778,161.38,161.37,2.88]
[1762595341614,0.04436778,161.38,161.36,5.5805]
[1762595341914,0.04436778,161.38,161.36,8.6405]
[1762595342316,0.04436778,161.38,161.36,5.5805]
[1762595342617,0.04436778,161.38,161.37,3.06]
[1762595343817,0.04436778,161.38,161.35,3.0992298]
[1762595344118,3.16436778,161.38,161.35,3.0992298]
[1762595344320,0.04436778,161.38,161.35,3.0992298]
[1762595344520,0.04436778,161.38,161.36,3.06]
[1762595345019,0.04436778,161.38,161.37,3.06]
[1762595350721,3.12,161.45,161.4,3.06]
[1762595351523,5.11114947,161.45,161.4,3.06]
[1762595351715,0.04715684,161.44,161.43,3.06]
[1762595354417,0.04715684,161.44,161.41,0.04416719]
[1762595354620,3.12,161.42,161.41,0.04416719]
[1762595356417,3.12,161.42,161.39,5.5795]
[1762595357322,5.11114947,161.41,161.39,0.04059109]
[1762595358025,1.99114947,161.41,161.39,3.10059109]
[1762595358728,1.99114947,161.41,161.39,0.04059109]
[1762595359027,1.99114947,161.41,161.39,5.62009109]
[1762595359919,1.99114947,161.41,161.39,8.68009109]
[1762595360717,5.11114947,161.41,161.39,5.62009109]
[1762595363321,1.99114947,161.41,161.39,5.62009109]
[1762595366133,3.16715684,161.44,161.4,8.639]
[1762595366134,1.99114947,161.43,161.4,8.639]
[1762595366334,1.99114947,161.43,161.41,3.06]
[1762595366830,5.11114947,161.43,161.41,5.5788]
[1762595368530,0.04715684,161.44,161.4,3.06]
[1762595369430,0.04715684,161.44,161.43,3.06]
[1762595371628,3.02715684,161.44,161.4,5.579]
[1762595371835,1.99114947,161.43,161.4,5.579]
[1762595372034,4.97114947,161.43,161.39,3.18059109]
[1762595372434,2.98,161.43,161.39,3.18059109]
[1762595372931,2.98,161.43,161.41,5.5788]
[1762595373237,3.02715684,161.44,161.41,5.5788]
[1762595374135,3.02715684,161.44,161.41,8.7188]
[1762595375036,0.04715684,161.44,161.42,5.5785]
[1762595376436,0.04715684,161.44,161.43,3.14]
[1762595387542,2.98,161.5,161.46,3.13]
[1762595387748,4.42276857,161.49,161.46,3.13]
[1762595388052,2.98,161.5,161.46,3.13]
[1762595388343,4.42191025,161.49,161.47,5.5767]
[1762595388537,2.98,161.49,161.46,0.04572675]
[1762595388746,7.40265225,161.48,161.46,0.04572675]
[1762595388945,2.98,161.48,161.46,0.04572675]
[1762595389344,2.98,161.46,161.37,3.13]
[1762595389540,2.98,161.43,161.37,3.13]
[1762595389737,6.08995888,161.41,161.31,3.13]
[1762595389937,2.98,161.39,161.31,3.13]
[1762595390149,2.98,161.37,161.31,3.13]
[1762595390450,3.0254397,161.36,161.32,3.17659644]
[1762595390747,4.42712427,161.35,161.32,0.04659644]
[1762595390949,7.40801668,161.34,161.32,0.04659644]
[1762595391149,2.98,161.34,161.32,0.04659644]
[1762595391955,2.98,161.35,161.32,0.04659644]
[1762595392254,3.0254397,161.36,161.32,3.17659644]
[1762595392954,0.0454397,161.36,161.32,3.17659644]
[1762595393756,0.0454397,161.36,161.33,5.5815]
[1762595394253,0.0454397,161.36,161.32,3.17659644]
[1762595394447,3.0254397,161.36,161.32,3.17659644]
[1762595395354,2.98,161.35,161.32,0.04659644]
[1762595398058,3.15539858,161.36,161.32,3.17659644]
[1762595398260,3.0254397,161.36,161.32,3.17659644]
[1762595400058,3.0254397,161.36,161.32,8.75829644]
[1762595401258,3.0254397,161.36,161.32,0.04659644]
[1762595403661,6.13539858,161.36,161.32,0.04659644]
[1762595403964,3.17,161.34,161.32,0.04659644]
[1762595405964,3.2154397,161.36,161.32,0.04659644]
[1762595406465,3.2154397,161.36,161.32,2.92659644]
[1762595406665,3.2154397,161.36,161.33,2.88]
[1762595406856,0.0454397,161.36,161.33,2.88]
[1762595407167,3.2154397,161.36,161.32,2.92659644]
[1762595407664,3.2154397,161.36,161.32,0.04659644]
[1762595408463,3.2154397,161.36,161.32,2.92659644]
[1762595411069,3.2154397,161.36,161.33,5.5815]
[1762595411265,0.0454397,161.36,161.32,2.92659644]
[1762595412367,74.0,161.43,161.35,2.88]
[1762595412557,6.27995888,161.44,161.35,2.88]
[1762595413466,0.04333153,161.41,161.38,2.92356621]
[1762595413865,0.04333153,161.41,161.4,2.88]
[1762595414866,3.21333153,161.41,161.39,5.5795]
[1762595415055,0.04333153,161.41,161.39,5.5795]
[1762595416175,0.04333153,161.41,161.4,2.88]
[1762595416372,3.21333153,161.41,161.38,0.04356621]
[1762595418972,3.21333153,161.41,161.38,5.62336621]
[1762595419171,3.21333153,161.41,161.38,2.92356621]
[1762595419474,3.21333153,161.41,161.38,0.04356621]
[1762595420073,3.21333153,161.41,161.38,2.92356621]
[1762595421077,3.21333153,161.41,161.38,8.50336621]
[1762595421273,0.04333153,161.41,161.39,2.88]
[1762595422072,0.04333153,161.41,161.4,2.88]
[1762595422981,0.04333153,161.41,161.4,5.98995888]
[1762595429282,3.17,161.47,161.44,8.4577]
[1762595429480,3.17,161.47,161.44,5.5777]
[1762595429688,3.17,161.47,161.41,2.88]
[1762595430189,3.17,161.47,161.44,5.5778]
[1762595430388,3.21747374,161.47,161.44,5.61911615]
[1762595431091,3.21747374,161.47,161.44,8.49911615]
[1762595431388,3.21747374,161.47,161.44,5.61911615]
[1762595432181,3.21747374,161.47,161.44,0.04131615]
[1762595432491,2.87,161.45,161.41,3.13]
[1762595432685,2.87,161.45,161.43,5.5781]
[1762595435482,2.87,161.45,161.42,0.04642872]
[1762595440894,0.04120095,161.46,161.44,5.12017449]
[1762595441695,0.04120095,161.46,161.44,8.7077]
[1762595442192,0.04120095,161.46,161.45,3.13]
[1762595443798,8.5747,161.54,161.47,3.09]
[1762595443991,8.5747,161.54,161.45,1.24]
[1762595443992,3.0,161.52,161.48,5.08017449]
[1762595444194,3.0,161.5,161.46,1.99017449]
[1762595444498,3.0,161.5,161.44,5.08017449]
[1762595444996,0.03937994,161.49,161.46,3.09]
[1762595445998,0.03937994,161.49,161.47,5.5767]
[1762595447600,0.03937994,161.49,161.47,8.6667]
[1762595447900,0.03937994,161.49,161.48,3.09]
[1762595450199,0.03937994,161.49,161.47,8.6667]
[1762595452399,3.03937994,161.49,161.45,5.61651346]
[1762595452699,3.03937994,161.49,161.45,8.70651346]
[1762595453097,3.03937994,161.49,161.45,5.61651346]
[1762595454914,4.42998065,161.48,161.45,5.61651346]
[1762595455200,3.03937994,161.49,161.45,5.61651346]
[1762595455407,4.43165097,161.48,161.45,8.70651346]
[1762595455594,3.03937994,161.49,161.45,8.70651346]
[1762595455797,3.0,161.47,161.45,5.61651346]
[1762595456502,4.99017449,161.47,161.45,0.03921346]
[1762595456697,7.43429002,161.46,161.45,0.03921346]
[1762595457000,4.43429002,161.46,161.45,0.03921346]
[1762595457205,4.99017449,161.48,161.45,0.03921346]
[1762595457507,7.43559985,161.47,161.45,0.03921346]
[1762595457805,4.43559985,161.46,161.45,0.03921346]
[1762595460507,7.43559985,161.46,161.45,0.03921346]
[1762595460804,9.42577434,161.46,161.45,0.03921346]
[1762595461003,2.99,161.45,161.42,5.5783]
[1762595461203,1.99017449,161.46,161.42,3.11]
[1762595461906,4.98017449,161.46,161.42,3.11]
[1762595462206,5.02482842,161.46,161.42,3.15547666]
[1762595462599,5.02482842,161.46,161.44,5.5778]
[1762595462801,7.38690734,161.45,161.44,5.5778]
[1762595463507,2.03482842,161.46,161.44,8.6878]
[1762595465112,5.02482842,161.46,161.44,5.5778]
[1762595465314,4.39976436,161.45,161.44,5.5778]
[1762595465809,2.03482842,161.46,161.44,8.6878]
[1762595467906,5.02482842,161.46,161.44,5.5778]
[1762595468214,2.99,161.44,161.42,0.04547666]
[1762595468416,9.38162335,161.43,161.42,0.04547666]
[1762595468915,2.99,161.42,161.35,3.11]
[1762595469113,4.98017449,161.39,161.35,3.11]
[1762595469614,1.99017449,161.41,161.37,3.11]
[1762595470002,0.04163154,161.41,161.37,3.15548022]
[1762595470602,0.04163154,161.41,161.39,5.5794]
[1762595471710,0.04163154,161.41,161.39,8.6894]
[1762595473114,2.03180603,161.41,161.39,5.5794]
[1762595473314,2.03180603,161.41,161.39,8.6894]
[1762595474018,0.04163154,161.41,161.4,3.11]
[1762595475816,0.04163154,161.41,161.39,5.5794]
[1762595476012,0.04163154,161.41,161.39,8.6894]
[1762595478321,5.02180603,161.41,161.37,8.73548022]
[1762595478918,5.02180603,161.41,161.38,5.5799]
[1762595479224,5.02180603,161.41,161.38,8.6899]
[1762595480919,4.98017449,161.39,161.37,0.04548022]
[1762595482422,1.99017449,161.39,161.37,8.73568022]
[1762595482816,5.02180603,161.41,161.38,3.11]
[1762595485924,2.99,161.4,161.38,3.11]
[1762595486122,2.99,161.4,161.38,8.6899]
[1762595489424,2.99,161.4,161.38,5.5799]